fUSD/lending_fUSD_20260506
["ID","MTS","AMOUNT","RATE_DAILY","PERIOD"]
[421683254,1778040650000,-1900.0,0.000399,14]
[421683252,1778040650000,-2208.0803,0.0003979,2]
[421683260,1778040650000,-500.0,0.0004,90]
[421683258,1778040650000,-153.0,0.0004,120]
[421683266,1778040650000,-150.0,0.0004008,120]
[421683262,1778040650000,-160.0,0.0004,120]
[421683261,1778040650000,-160.0,0.0004,3]
[421683270,1778040650000,-150.0,0.00040223,2]
[421683269,1778040650000,-278.33,0.00040171,120]
[421683265,1778040650000,-278.33,0.00040071,120]
[421683237,1778040650000,-227.29539059,0.000393,8]
[421683297,1778040650000,-150.0,0.00040822,60]
[421683302,1778040650000,-500.0,0.00040822,60]
[421683337,1778040650000,-500.0,0.00040822,2]
[421683343,1778040650000,-27810.3742,0.0004085,2]
[421683342,1778040650000,-4000.0,0.00040849,60]
[421683335,1778040650000,-500.0,0.00040822,2]
[421683334,1778040650000,-500.0,0.00040822,2]
[421683341,1778040650000,-350.0,0.00040837,4]
[421683339,1778040650000,-150.0,0.00040822,60]
[421683338,1778040650000,-326.77120536,0.00040822,2]
[421683344,1778040650000,-3678.0062,0.0004085,2]
[421683336,1778040650000,-500.0,0.00040822,2]
[421683340,1778040650000,-188.54851579,0.00040822,60]
[421683347,1778040650000,-4403.39794084,0.00040863,2]
[421683349,1778040650000,-1486.0,0.00040875,2]
[421683351,1778040650000,-1486.0,0.00040875,2]
[421683350,1778040650000,-1299.0,0.00040875,2]
[421683348,1778040650000,-278.33,0.00040871,120]
[421683353,1778040650000,-227.29539057,0.00040908,8]
[421683352,1778040650000,-1299.0,0.00040875,2]
[421683361,1778040650000,-262.686372,0.0004095,30]
[421683359,1778040650000,-262.686372,0.0004095,30]
[421683357,1778040650000,-185287.0,0.0004095,60]
[421683355,1778040650000,-700.0,0.00040914,21]
[421683358,1778040650000,-262.686372,0.0004095,30]
[421683356,1778040650000,-500.0,0.00040914,21]
[421683360,1778040650000,-262.686372,0.0004095,30]
[421683354,1778040650000,-511.51771889,0.00040914,21]
[421683299,1778040650000,-150.0,0.00040822,60]
[421683363,1778040650000,-723.635431,0.0004095,30]
[421683364,1778040650000,-254.415554,0.0004095,30]
[421683345,1778040650000,-350.0,0.00040856,3]
[421683346,1778040650000,-5012.50772491,0.00040863,2]
[421683362,1778040650000,-254.415554,0.0004095,30]
[421683325,1778040650000,-500.0,0.00040822,2]
[421683323,1778040650000,-506.33798591,0.00040822,60]
[421683300,1778040650000,-218.61009254,0.00040822,60]
[421683301,1778040650000,-500.0,0.00040822,60]
[421683303,1778040650000,-500.0,0.00040822,60]
[421683317,1778040650000,-500.0,0.00040822,60]
[421683318,1778040650000,-500.0,0.00040822,60]
[421683307,1778040650000,-500.0,0.00040822,60]
[421683311,1778040650000,-500.0,0.00040822,60]
[421683314,1778040650000,-500.0,0.00040822,60]
[421683309,1778040650000,-500.0,0.00040822,60]
[421683312,1778040650000,-500.0,0.00040822,60]
[421683319,1778040650000,-500.0,0.00040822,60]
[421683308,1778040650000,-500.0,0.00040822,60]
[421683306,1778040650000,-500.0,0.00040822,60]
[421683310,1778040650000,-500.0,0.00040822,60]
[421683304,1778040650000,-500.0,0.00040822,60]
[421683315,1778040650000,-500.0,0.00040822,60]
[421683316,1778040650000,-512.34278439,0.00040822,60]
[421683333,1778040650000,-500.0,0.00040822,2]
[421683330,1778040650000,-500.0,0.00040822,2]
[421683331,1778040650000,-500.0,0.00040822,2]
[421683332,1778040650000,-500.0,0.00040822,2]
[421683329,1778040650000,-500.0,0.00040822,2]
[421683324,1778040650000,-500.0,0.00040822,2]
[421683321,1778040650000,-500.0,0.00040822,60]
[421683313,1778040650000,-500.0,0.00040822,60]
[421683328,1778040650000,-500.0,0.00040822,2]
[421683322,1778040650000,-500.0,0.00040822,60]
[421683327,1778040650000,-500.0,0.00040822,2]
[421683326,1778040650000,-500.0,0.00040822,2]
[421683320,1778040650000,-500.0,0.00040822,60]
[421683396,1778040651000,-504.0,0.0004113,17]
[421683405,1778040651000,-298.218375,0.00041341,2]
[421683395,1778040651000,-500.0,0.00041129,17]
[421683397,1778040651000,-278.33,0.00041171,120]
[421683404,1778040651000,-5687.7802376,0.00041277,2]
[421683400,1778040651000,-153.0,0.000412,120]
[421683403,1778040651000,-278.33,0.00041271,120]
[421683402,1778040651000,-298.218375,0.00041241,2]
[421683401,1778040651000,-6273.11175201,0.00041209,70]
[421683406,1778040651000,-1560.0,0.0004137,120]
[421683416,1778040651000,-1419.836767,0.00041468,120]
[421683417,1778040651000,-387.503291,0.00041468,7]
[421683399,1778040651000,-2500.0,0.000412,120]
[421683413,1778040651000,-1419.836767,0.00041468,120]
[421683408,1778040651000,-278.33,0.00041371,120]
[421683407,1778040651000,-157.0,0.0004137,90]
[421683409,1778040651000,-4569.0,0.00041421,7]
[421683414,1778040651000,-1419.836767,0.00041468,120]
[421683415,1778040651000,-1419.836767,0.00041468,120]
[421683411,1778040651000,-151.0,0.00041465,14]
[421683410,1778040651000,-298.218375,0.00041441,2]
[421683412,1778040651000,-151.0,0.00041468,120]
[421683419,1778040651000,-387.503291,0.00041468,7]
[421683425,1778040651000,-2500.0,0.000415,120]
[421683420,1778040651000,-387.503291,0.00041468,7]
[421683398,1778040651000,-1221.0,0.00041186,2]
[421683418,1778040651000,-387.503291,0.00041468,7]
[421683394,1778040651000,-200.0,0.00041096,20]
[421683378,1778040651000,-500.0,0.00041,45]
[421683388,1778040651000,-157.0,0.00041,90]
[421683426,1778040651000,-151.0,0.000415,120]
[421683372,1778040651000,-167.0,0.00041,30]
[421683365,1778040651000,-723.635431,0.0004095,30]
[421683369,1778040651000,-723.635431,0.0004095,30]
[421683368,1778040651000,-254.415554,0.0004095,30]
[421683371,1778040651000,-187.58312655,0.00041,2]
[421683366,1778040651000,-254.415554,0.0004095,30]
[421683370,1778040651000,-278.33,0.00040971,120]
[421683367,1778040651000,-723.635431,0.0004095,30]
[421683373,1778040651000,-500.0,0.00041,45]
[421683374,1778040651000,-500.0,0.00041,45]
[421683375,1778040651000,-500.0,0.00041,45]
[421683393,1778040651000,-291.06641213,0.00041096,2]
[421683376,1778040651000,-500.0,0.00041,45]
[421683380,1778040651000,-500.0,0.00041,45]
[421683379,1778040651000,-500.0,0.00041,45]
[421683383,1778040651000,-500.0,0.00041,45]
[421683382,1778040651000,-500.0,0.00041,45]
[421683384,1778040651000,-500.0,0.00041,45]
[421683385,1778040651000,-500.0,0.00041,45]
[421683386,1778040651000,-500.0,0.00041,45]
[421683392,1778040651000,-1560.0,0.00041096,120]
[421683389,1778040651000,-1142.1,0.00041041,120]
[421683391,1778040651000,-160.0,0.00041096,30]
[421683387,1778040651000,-500.0,0.00041,45]
[421683390,1778040651000,-278.33,0.00041071,120]
[421683377,1778040651000,-500.0,0.00041,45]
[421683428,1778040651000,-3625.0,0.00041536,2]
[421683381,1778040651000,-500.0,0.00041,45]
[421683427,1778040651000,-500.0,0.00041528,13]
[421683458,1778040651000,-150.0,0.0004183,30]
[421683457,1778040651000,-500.0,0.00041822,107]
[421683464,1778040651000,-800.0,0.00041838,60]
[421683465,1778040651000,-800.0,0.00041838,60]
[421683466,1778040651000,-298.218375,0.00041841,2]
[421683459,1778040651000,-1520.48023964,0.0004183,30]
[421683469,1778040651000,-250.0,0.00041863,120]
[421683460,1778040651000,-150.0,0.0004183,30]
[421683467,1778040651000,-250.0,0.00041863,120]
[421683482,1778040651000,-150.54233273,0.000419,120]
[421683461,1778040651000,-166.39269129,0.0004183,30]
[421683462,1778040651000,-800.0,0.00041838,60]
[421683451,1778040651000,-3099.63419245,0.000418,120]
[421683463,1778040651000,-800.0,0.00041838,60]
[421683470,1778040651000,-450.27,0.0004189,120]
[421683473,1778040651000,-150.5423328,0.000419,120]
[421683475,1778040651000,-150.54233273,0.000419,120]
[421683471,1778040651000,-429.55,0.000419,30]
[421683474,1778040651000,-150.54233273,0.000419,120]
[421683472,1778040651000,-1900.0,0.000419,15]
[421683481,1778040651000,-150.54233273,0.000419,120]
[421683476,1778040651000,-150.54233273,0.000419,120]
[421683477,1778040651000,-150.54233273,0.000419,120]
[421683478,1778040651000,-289.47091096,0.000419,60]
[421683479,1778040651000,-150.54233273,0.000419,120]
[421683421,1778040651000,-20000.0,0.00041468,120]
[421683468,1778040651000,-250.0,0.00041863,120]
[421683452,1778040651000,-2416.56623316,0.000418,120]
[421683480,1778040651000,-150.54233273,0.000419,120]
[421683450,1778040651000,-389.26,0.00041793,30]
[421683429,1778040651000,-298.218375,0.00041541,2]
[421683422,1778040651000,-20000.0,0.00041468,120]
[421683423,1778040651000,-30213.0,0.00041468,120]
[421683424,1778040651000,-278.33,0.00041471,120]
[421683431,1778040651000,-150.0,0.00041558,120]
[421683443,1778040651000,-1268.0,0.00041696,2]
[421683442,1778040651000,-1352.0,0.00041696,2]
[421683449,1778040651000,-278.473,0.00041771,120]
[421683432,1778040651000,-278.33,0.00041571,120]
[421683430,1778040651000,-350.0,0.00041543,4]
[421683433,1778040651000,-500.0,0.00041589,97]
[421683437,1778040651000,-278.33,0.00041671,120]
[421683434,1778040651000,-500.0,0.00041598,78]
[421683441,1778040651000,-925.0,0.00041696,2]
[421683438,1778040651000,-350.0,0.0004169,7]
[421683455,1778040651000,-208.85,0.00041811,120]
[421683436,1778040651000,-1560.0,0.00041644,120]
[421683454,1778040651000,-215.64,0.00041811,120]
[421683456,1778040651000,-10000.0,0.00041817,2]
[421683445,1778040651000,-700.0,0.00041736,120]
[421683447,1778040651000,-183.98,0.00041747,30]
[421683453,1778040651000,-4500.0,0.000418,30]
[421683446,1778040651000,-298.218375,0.00041741,2]
[421683444,1778040651000,-4000.0,0.00041699,60]
[421683440,1778040651000,-3536.0,0.00041696,2]
[421683439,1778040651000,-1142.1,0.00041694,120]
[421683435,1778040651000,-298.218375,0.00041641,2]
[421683448,1778040651000,-642.54,0.00041747,30]
[421683525,1778040652000,-500.0,0.00041915,120]
[421683527,1778040652000,-8565.75555911,0.00041915,120]
[421683523,1778040652000,-500.0,0.00041915,120]
[421683519,1778040652000,-557.5788265,0.00041915,120]
[421683518,1778040652000,-500.0,0.00041915,120]
[421683510,1778040652000,-518.5,0.00041915,120]
[421683516,1778040652000,-151.0,0.00041915,120]
[421683515,1778040652000,-500.0,0.00041915,120]
[421683508,1778040652000,-500.0,0.00041915,120]
[421683513,1778040652000,-7681.20591386,0.00041915,120]
[421683512,1778040652000,-500.0,0.00041915,120]
[421683522,1778040652000,-8260.13072239,0.00041915,120]
[421683536,1778040652000,-174.61919141,0.00041915,120]
[421683524,1778040652000,-578.20924308,0.00041915,120]
[421683521,1778040652000,-156.587,0.00041915,120]
[421683526,1778040652000,-162.380719,0.00041915,120]
[421683528,1778040652000,-500.0,0.00041915,120]
[421683530,1778040652000,-500.0,0.00041915,120]
[421683540,1778040652000,-181.08010149,0.00041915,120]
[421683541,1778040652000,-500.0,0.00041915,120]
[421683533,1778040652000,-500.0,0.00041915,120]
[421683532,1778040652000,-8882.6885148,0.00041915,120]
[421683529,1778040652000,-599.60298507,0.00041915,120]
[421683531,1778040652000,-168.3888056,0.00041915,120]
[421683514,1778040652000,-537.6845,0.00041915,120]
[421683520,1778040652000,-500.0,0.00041915,120]
[421683511,1778040652000,-500.0,0.00041915,120]
[421683496,1778040652000,-500.0,0.00041915,120]
[421683506,1778040652000,-7142.856,0.00041915,120]
[421683534,1778040652000,-256.50073446,0.00041915,120]
[421683483,1778040652000,-150.54233273,0.000419,120]
[421683484,1778040652000,-150.54233273,0.000419,120]
[421683492,1778040652000,-500.0,0.00041915,120]
[421683485,1778040652000,-504.0,0.00041908,18]
[421683487,1778040652000,-500.0,0.00041915,31]
[421683486,1778040652000,-500.0,0.00041913,114]
[421683488,1778040652000,-500.0,0.00041915,120]
[421683489,1778040652000,-200.0,0.00041915,120]
[421683491,1778040652000,-520.0,0.00041915,120]
[421683490,1778040652000,-200.0,0.00041915,120]
[421683493,1778040652000,-219.55237565,0.00041915,120]
[421683498,1778040652000,-500.0,0.00041915,120]
[421683497,1778040652000,-200.0,0.00041915,120]
[421683495,1778040652000,-352.86664135,0.00041915,120]
[421683501,1778040652000,-212.84760518,0.00041915,120]
[421683499,1778040652000,-200.0,0.00041915,120]
[421683504,1778040652000,-6888.0,0.00041915,120]
[421683494,1778040652000,-200.0,0.00041915,120]
[421683503,1778040652000,-500.0,0.00041915,120]
[421683505,1778040652000,-500.0,0.00041915,120]
[421683502,1778040652000,-500.0,0.00041915,120]
[421683500,1778040652000,-500.0,0.00041915,120]
[421683507,1778040652000,-500.0,0.00041915,120]
[421683517,1778040652000,-7965.41053268,0.00041915,120]
[421683509,1778040652000,-7407.141672,0.00041915,120]
[421683535,1778040652000,-500.0,0.00041915,120]
[421683539,1778040652000,-500.0,0.00041915,120]
[421683538,1778040652000,-500.0,0.00041915,120]
[421683582,1778040652000,-620.0,0.00041915,120]
[421683583,1778040652000,-151.0,0.00041915,120]
[421683584,1778040652000,-151.0,0.00041915,120]
[421683572,1778040652000,-500.0,0.00041915,120]
[421683575,1778040652000,-151.0,0.00041915,120]
[421683573,1778040652000,-151.0,0.00041915,120]
[421683574,1778040652000,-151.0,0.00041915,120]
[421683581,1778040652000,-151.0,0.00041915,120]
[421683577,1778040652000,-151.0,0.00041915,120]
[421683578,1778040652000,-151.0,0.00041915,120]
[421683580,1778040652000,-151.0,0.00041915,120]
[421683576,1778040652000,-151.0,0.00041915,120]
[421683568,1778040652000,-500.0,0.00041915,120]
[421683585,1778040652000,-642.94,0.00041915,120]
[421683590,1778040652000,-151.0,0.00041915,120]
[421683586,1778040652000,-151.0,0.00041915,120]
[421683589,1778040652000,-151.0,0.00041915,120]
[421683588,1778040652000,-356.65541779,0.00041915,120]
[421683596,1778040652000,-151.0,0.00041915,120]
[421683593,1778040652000,-151.0,0.00041915,120]
[421683594,1778040652000,-151.0,0.00041915,120]
[421683592,1778040652000,-151.0,0.00041915,120]
[421683597,1778040652000,-151.0,0.00041915,120]
[421683591,1778040652000,-151.0,0.00041915,120]
[421683595,1778040652000,-151.0,0.00041915,120]
[421683537,1778040652000,-3235.46988921,0.00041915,120]
[421683587,1778040652000,-151.0,0.00041915,120]
[421683569,1778040652000,-151.0,0.00041915,120]
[421683579,1778040652000,-151.0,0.00041915,120]
[421683564,1778040652000,-500.0,0.00041915,120]
[421683570,1778040652000,-500.0,0.00041915,120]
[421683542,1778040652000,-500.0,0.00041915,120]
[421683543,1778040652000,-187.78006525,0.00041915,120]
[421683550,1778040652000,-500.0,0.00041915,120]
[421683544,1778040652000,-500.0,0.00041915,120]
[421683545,1778040652000,-500.0,0.00041915,120]
[421683548,1778040652000,-500.0,0.00041915,120]
[421683552,1778040652000,-209.40437684,0.00041915,120]
[421683546,1778040652000,-194.72792766,0.00041915,120]
[421683549,1778040652000,-201.93286099,0.00041915,120]
[421683551,1778040652000,-500.0,0.00041915,120]
[421683556,1778040652000,-225.18697532,0.00041915,120]
[421683555,1778040652000,-500.0,0.00041915,120]
[421683547,1778040652000,-500.0,0.00041915,120]
[421683566,1778040652000,-500.0,0.00041915,120]
[421683562,1778040652000,-500.0,0.00041915,120]
[421683554,1778040652000,-217.15233878,0.00041915,120]
[421683571,1778040652000,-151.0,0.00041915,120]
[421683567,1778040652000,-151.0,0.00041915,120]
[421683565,1778040652000,-151.0,0.00041915,120]
[421683561,1778040652000,-151.0,0.00041915,120]
[421683563,1778040652000,-151.0,0.00041915,120]
[421683558,1778040652000,-233.51889341,0.00041915,120]
[421683559,1778040652000,-500.0,0.00041915,120]
[421683553,1778040652000,-500.0,0.00041915,120]
[421683557,1778040652000,-500.0,0.00041915,120]
[421683560,1778040652000,-221.47298719,0.00041915,120]
[421683637,1778040653000,-151.0,0.00041916,120]
[421683643,1778040653000,-1110.321629,0.00041916,28]
[421683645,1778040653000,-1110.321629,0.00041916,28]
[421683640,1778040653000,-878.136391,0.00041916,60]
[421683631,1778040653000,-269.120346,0.00041916,120]
[421683626,1778040653000,-269.120346,0.00041916,120]
[421683632,1778040653000,-151.0,0.00041916,120]
[421683628,1778040653000,-298.455771,0.00041916,120]
[421683627,1778040653000,-151.0,0.00041916,30]
[421683629,1778040653000,-269.120346,0.00041916,120]
[421683638,1778040653000,-253.501076,0.00041916,120]
[421683630,1778040653000,-151.0,0.00041916,30]
[421683639,1778040653000,-878.136391,0.00041916,60]
[421683660,1778040653000,-152.32070116,0.00041917,120]
[421683644,1778040653000,-1110.321629,0.00041916,28]
[421683642,1778040653000,-878.136391,0.00041916,60]
[421683641,1778040653000,-878.136391,0.00041916,60]
[421683647,1778040653000,-479.870062,0.00041916,120]
[421683649,1778040653000,-479.870062,0.00041916,120]
[421683648,1778040653000,-479.870062,0.00041916,120]
[421683657,1778040653000,-500.0,0.00041916,11]
[421683650,1778040653000,-479.870062,0.00041916,120]
[421683655,1778040653000,-151.0,0.00041916,120]
[421683652,1778040653000,-182.794341,0.00041916,30]
[421683654,1778040653000,-182.794341,0.00041916,30]
[421683651,1778040653000,-182.794341,0.00041916,30]
[421683635,1778040653000,-151.0,0.00041916,120]
[421683646,1778040653000,-1110.321629,0.00041916,28]
[421683636,1778040653000,-151.0,0.00041916,120]
[421683600,1778040653000,-151.0,0.00041915,120]
[421683634,1778040653000,-151.0,0.00041916,120]
[421683661,1778040653000,-153.25773527,0.00041917,120]
[421683598,1778040653000,-151.0,0.00041915,120]
[421683611,1778040653000,-500.0,0.00041916,120]
[421683610,1778040653000,-500.0,0.00041916,120]
[421683601,1778040653000,-151.0,0.00041915,120]
[421683599,1778040653000,-151.0,0.00041915,120]
[421683602,1778040653000,-259.20048071,0.00041916,120]
[421683605,1778040653000,-500.0,0.00041916,120]
[421683609,1778040653000,-500.0,0.00041916,120]
[421683603,1778040653000,-500.0,0.00041916,120]
[421683606,1778040653000,-500.0,0.00041916,120]
[421683604,1778040653000,-500.0,0.00041916,120]
[421683607,1778040653000,-500.0,0.00041916,120]
[421683624,1778040653000,-269.120346,0.00041916,120]
[421683608,1778040653000,-500.0,0.00041916,120]
[421683614,1778040653000,-500.0,0.00041916,120]
[421683617,1778040653000,-500.0,0.00041916,120]
[421683616,1778040653000,-500.0,0.00041916,120]
[421683621,1778040653000,-592.7767285,0.00041916,120]
[421683618,1778040653000,-500.0,0.00041916,120]
[421683615,1778040653000,-500.0,0.00041916,120]
[421683613,1778040653000,-500.0,0.00041916,120]
[421683620,1778040653000,-500.0,0.00041916,120]
[421683623,1778040653000,-298.455771,0.00041916,120]
[421683622,1778040653000,-298.455771,0.00041916,120]
[421683619,1778040653000,-500.0,0.00041916,120]
[421683625,1778040653000,-298.455771,0.00041916,120]
[421683633,1778040653000,-151.0,0.00041916,120]
[421683612,1778040653000,-500.0,0.00041916,120]
[421683658,1778040653000,-151.5632544,0.00041917,120]
[421683719,1778040653000,-158.02757533,0.00041917,120]
[421683656,1778040653000,-151.0,0.00041916,120]
[421683698,1778040653000,-500.0,0.00041917,2]
[421683693,1778040653000,-1096.29,0.00041917,120]
[421683696,1778040653000,-500.0,0.00041917,2]
[421683694,1778040653000,-500.0,0.00041917,2]
[421683697,1778040653000,-1096.29,0.00041917,120]
[421683695,1778040653000,-1096.29,0.00041917,120]
[421683700,1778040653000,-500.0,0.00041917,2]
[421683709,1778040653000,-252.73793154,0.00041917,2]
[421683699,1778040653000,-1096.29,0.00041917,120]
[421683710,1778040653000,-158.09513822,0.00041917,120]
[421683701,1778040653000,-1096.52553585,0.00041917,120]
[421683705,1778040653000,-500.0,0.00041917,2]
[421683703,1778040653000,-500.0,0.00041917,2]
[421683692,1778040653000,-500.0,0.00041917,2]
[421683704,1778040653000,-500.0,0.00041917,2]
[421683707,1778040653000,-500.0,0.00041917,2]
[421683708,1778040653000,-500.0,0.00041917,2]
[421683712,1778040653000,-368.17329323,0.00041917,120]
[421683711,1778040653000,-561.39774132,0.00041917,120]
[421683717,1778040653000,-164.12030291,0.00041917,120]
[421683718,1778040653000,-500.0,0.00041917,120]
[421683715,1778040653000,-500.0,0.00041917,120]
[421683714,1778040653000,-500.0,0.00041917,120]
[421683713,1778040653000,-190.73919879,0.00041917,120]
[421683720,1778040653000,-572.67831241,0.00041917,120]
[421683716,1778040653000,-500.0,0.00041917,120]
[421683659,1778040653000,-155.35295437,0.00041917,120]
[421683721,1778040653000,-268.66396044,0.00041917,120]
[421683706,1778040653000,-500.0,0.00041917,2]
[421683690,1778040653000,-500.0,0.00041917,2]
[421683702,1778040653000,-500.0,0.00041917,2]
[421683689,1778040653000,-1096.29,0.00041917,120]
[421683662,1778040653000,-202.08812646,0.00041917,120]
[421683691,1778040653000,-1096.29,0.00041917,120]
[421683663,1778040653000,-1096.29,0.00041917,120]
[421683667,1778040653000,-1096.29,0.00041917,120]
[421683666,1778040653000,-1096.29,0.00041917,120]
[421683665,1778040653000,-1096.29,0.00041917,120]
[421683675,1778040653000,-1096.29,0.00041917,120]
[421683670,1778040653000,-1096.29,0.00041917,120]
[421683664,1778040653000,-1096.29,0.00041917,120]
[421683671,1778040653000,-1096.29,0.00041917,120]
[421683674,1778040653000,-500.0,0.00041917,2]
[421683669,1778040653000,-1096.29,0.00041917,120]
[421683673,1778040653000,-1096.29,0.00041917,120]
[421683676,1778040653000,-1096.29,0.00041917,120]
[421683653,1778040653000,-182.794341,0.00041916,30]
[421683672,1778040653000,-500.0,0.00041917,2]
[421683668,1778040653000,-1096.29,0.00041917,120]
[421683688,1778040653000,-500.0,0.00041917,2]
[421683685,1778040653000,-1096.29,0.00041917,120]
[421683684,1778040653000,-500.0,0.00041917,2]
[421683683,1778040653000,-1096.29,0.00041917,120]
[421683687,1778040653000,-1096.29,0.00041917,120]
[421683682,1778040653000,-500.0,0.00041917,2]
[421683686,1778040653000,-500.0,0.00041917,2]
[421683681,1778040653000,-1096.29,0.00041917,120]
[421683680,1778040653000,-500.0,0.00041917,2]
[421683679,1778040653000,-1096.29,0.00041917,120]
[421683677,1778040653000,-500.0,0.00041917,2]
[421683678,1778040653000,-500.0,0.00041917,2]
[421683765,1778040654000,-862.87,0.00041917,120]
[421683763,1778040654000,-862.87,0.00041917,120]
[421683761,1778040654000,-862.87,0.00041917,120]
[421683753,1778040654000,-862.87,0.00041917,120]
[421683758,1778040654000,-1252.5,0.00041917,120]
[421683760,1778040654000,-1252.5,0.00041917,120]
[421683770,1778040654000,-1252.5,0.00041917,120]
[421683752,1778040654000,-1252.5,0.00041917,120]
[421683759,1778040654000,-862.87,0.00041917,120]
[421683755,1778040654000,-862.87,0.00041917,120]
[421683750,1778040654000,-862.87,0.00041917,120]
[421683764,1778040654000,-1252.5,0.00041917,120]
[421683769,1778040654000,-862.87,0.00041917,120]
[421683772,1778040654000,-1252.5,0.00041917,120]
[421683766,1778040654000,-1252.5,0.00041917,120]
[421683768,1778040654000,-1252.5,0.00041917,120]
[421683767,1778040654000,-862.87,0.00041917,120]
[421683782,1778040654000,-1252.5,0.00041917,120]
[421683775,1778040654000,-862.87,0.00041917,120]
[421683783,1778040654000,-862.87,0.00041917,120]
[421683771,1778040654000,-862.87,0.00041917,120]
[421683773,1778040654000,-862.87,0.00041917,120]
[421683774,1778040654000,-1252.5,0.00041917,120]
[421683777,1778040654000,-862.87,0.00041917,120]
[421683781,1778040654000,-862.87,0.00041917,120]
[421683779,1778040654000,-862.87,0.00041917,120]
[421683751,1778040654000,-862.87,0.00041917,120]
[421683762,1778040654000,-1252.5,0.00041917,120]
[421683749,1778040654000,-862.87,0.00041917,120]
[421683722,1778040654000,-500.0,0.00041917,120]
[421683754,1778040654000,-1252.5,0.00041917,120]
[421683776,1778040654000,-1252.5,0.00041917,120]
[421683723,1778040654000,-556.81588451,0.00041917,120]
[421683725,1778040654000,-640.05,0.00041917,120]
[421683724,1778040654000,-640.05,0.00041917,120]
[421683726,1778040654000,-640.05,0.00041917,120]
[421683733,1778040654000,-640.05,0.00041917,120]
[421683732,1778040654000,-640.05,0.00041917,120]
[421683730,1778040654000,-640.05,0.00041917,120]
[421683729,1778040654000,-640.05,0.00041917,120]
[421683731,1778040654000,-640.05,0.00041917,120]
[421683727,1778040654000,-640.05,0.00041917,120]
[421683728,1778040654000,-640.05,0.00041917,120]
[421683735,1778040654000,-640.05,0.00041917,120]
[421683748,1778040654000,-862.87,0.00041917,120]
[421683734,1778040654000,-640.05,0.00041917,120]
[421683738,1778040654000,-640.05,0.00041917,120]
[421683737,1778040654000,-640.05,0.00041917,120]
[421683743,1778040654000,-640.05,0.00041917,120]
[421683740,1778040654000,-640.05,0.00041917,120]
[421683739,1778040654000,-640.05,0.00041917,120]
[421683742,1778040654000,-640.05,0.00041917,120]
[421683744,1778040654000,-640.05,0.00041917,120]
[421683741,1778040654000,-640.05,0.00041917,120]
[421683745,1778040654000,-640.05,0.00041917,120]
[421683746,1778040654000,-640.05,0.00041917,120]
[421683756,1778040654000,-1252.5,0.00041917,120]
[421683757,1778040654000,-862.87,0.00041917,120]
[421683747,1778040654000,-640.22351911,0.00041917,120]
[421683736,1778040654000,-640.05,0.00041917,120]
[421683780,1778040654000,-1252.5,0.00041917,120]
[421683798,1778040654000,-197.890149,0.00041917,120]
[421683784,1778040654000,-1252.5,0.00041917,120]
[421683814,1778040654000,-500.0,0.00041917,120]
[421683815,1778040654000,-500.0,0.00041917,120]
[421683818,1778040654000,-500.0,0.00041917,120]